bitfinex-derivatives/quotes_BNBF0:USTF0_20250406
["timestamp","ask_amount","ask_price","bid_price","bid_amount"]
[1743974812915,3.56638649,555.32,554.53,3.41566578]
[1743974813207,2.22433988,555.31,554.53,3.41566578]
[1743974813410,3.8799113,555.31,554.53,3.41566578]
[1743974813614,2.22433988,555.3,554.53,3.41566578]
[1743974813814,1.34204661,555.29,554.53,3.41566578]
[1743974814014,3.56638649,555.29,554.53,3.41566578]
[1743974814211,2.22433988,555.28,554.53,3.41566578]
[1743974814917,1.34204661,555.27,554.53,3.41566578]
[1743974815215,2.00488208,555.27,554.53,3.41566578]
[1743974815416,1.34204661,555.27,554.53,3.41566578]
[1743974815712,2.5443038,555.31,554.53,3.41566578]
[1743974815917,2.00684735,555.3,554.53,3.41566578]
[1743974816117,0.31353187,555.26,554.53,3.41566578]
[1743974818915,1.56882608,555.28,554.53,3.41566578]
[1743974819117,0.31353046,555.25,554.53,3.41566578]
[1743974819422,2.00799529,555.27,554.53,3.41566578]
[1743974819622,1.34204661,555.27,554.53,3.41566578]
[1743974820024,2.23562765,555.3,554.53,3.41566578]
[1743974820323,5.13467426,555.29,554.53,3.41566578]
[1743974820528,0.66639208,555.28,554.53,3.41566578]
[1743974820719,2.54964482,555.28,554.53,3.41566578]
[1743974820918,0.66659055,555.27,554.53,3.41566578]
[1743974821223,0.98,555.26,554.53,3.41566578]
[1743974821920,1.6467833,555.26,554.53,3.41566578]
[1743974822124,0.98,555.26,554.53,3.41566578]
[1743974822828,1.6467833,555.26,554.53,3.41566578]
[1743974823630,4.55937562,555.26,554.53,3.41566578]
[1743974823924,2.23732901,555.25,554.53,3.41566578]
[1743974824729,1.34204661,555.24,554.53,3.41566578]
[1743974824927,3.57937562,555.24,554.53,3.41566578]
[1743974825125,3.57937562,555.23,554.53,3.41566578]
[1743974825324,2.56871402,555.22,554.53,3.41566578]
[1743974825532,3.91076063,555.21,554.53,3.41566578]
[1743974825724,2.56871402,555.2,554.53,3.41566578]
[1743974825929,3.91076063,555.19,554.53,3.41566578]
[1743974826131,2.56860293,555.18,554.53,3.41566578]
[1743974826329,2.56860293,555.17,554.53,3.055]
[1743974826528,2.56860293,555.16,554.53,3.055]
[1743974826731,3.91064954,555.15,554.53,3.055]
[1743974827027,2.23721792,555.14,554.53,3.055]
[1743974827332,3.91077061,555.13,554.53,3.055]
[1743974827530,3.57926453,555.12,554.53,3.055]
[1743974827736,2.568724,555.11,554.53,3.055]
[1743974827931,2.56676409,555.1,554.53,3.055]
[1743974828135,2.56676409,555.09,554.53,3.055]
[1743974828336,3.9088107,555.08,554.53,3.055]
[1743974828534,2.56676409,555.07,554.53,3.055]
[1743974828835,2.56676409,555.06,554.53,3.055]
[1743974829038,2.56676409,555.05,554.53,3.055]
[1743974829331,2.56676409,555.04,554.53,3.055]
[1743974829531,2.56471862,555.03,554.53,3.055]
[1743974829837,2.56339964,555.02,554.53,3.055]
[1743974830034,3.90544625,555.01,554.53,3.055]
[1743974830233,2.23189356,555.0,554.53,3.055]
[1743974830430,3.9055678,554.99,554.53,3.055]
[1743974830630,2.56352119,554.98,554.53,3.055]
[1743974830830,2.56352119,554.97,554.53,3.055]
[1743974831034,2.56352119,554.96,554.53,3.055]
[1743974831330,2.56352119,554.95,554.53,3.055]
[1743974831534,3.9055678,554.94,554.53,3.055]
[1743974831731,2.23189356,554.93,554.53,3.055]
[1743974831933,2.56352119,554.92,554.53,3.055]
[1743974832132,4.2659866,554.91,554.53,3.055]
[1743974832340,2.92394649,554.9,554.53,3.055]
[1743974832532,2.59232535,554.89,553.0,1.31404325]
[1743974832731,2.56352119,554.88,553.0,1.31404325]
[1743974832935,2.92396597,554.87,553.02,0.36165057]
[1743974833135,2.91926334,554.86,553.02,0.36165057]
[1743974833340,2.91926984,554.85,553.02,0.36165057]
[1743974833540,2.91927633,554.84,553.02,0.36165057]
[1743974833741,2.91928283,554.83,553.02,0.36165057]
[1743974833940,2.91928933,554.82,553.02,0.36165057]
[1743974834143,4.26134243,554.81,553.02,0.36165057]
[1743974834339,2.58767469,554.8,553.02,0.36165057]
[1743974834539,2.55881206,554.79,553.02,0.36165057]
[1743974834840,3.90085867,554.78,553.02,0.36165057]
[1743974835040,2.55881206,554.77,553.02,0.36165057]
[1743974835236,2.55881206,554.76,553.02,0.36165057]
[1743974835436,3.56923104,554.75,553.02,0.36165057]
[1743974835638,2.55899304,554.74,553.02,0.36165057]
[1743974835840,2.55899304,554.73,553.02,0.36165057]
[1743974836142,3.90103965,554.72,553.02,0.36165057]
[1743974836343,2.55899304,554.71,553.02,1.66265057]
[1743974836540,1.34204661,554.72,553.02,1.66265057]
[1743974836541,2.55381837,554.7,553.02,1.66265057]
[1743974836741,2.55381837,554.69,553.02,1.66265057]
[1743974837046,3.56405637,554.68,553.02,1.66265057]
[1743974837244,2.55381707,554.67,553.02,1.66265057]
[1743974837444,2.55381707,554.66,553.02,1.66265057]
[1743974837644,3.89586368,554.65,553.02,1.66265057]
[1743974837844,2.55381707,554.64,553.02,1.66265057]
[1743974838045,2.55381707,554.63,553.02,1.66265057]
[1743974838242,2.55381707,554.62,553.02,1.66265057]
[1743974838445,2.55381707,554.61,553.02,1.66265057]
[1743974838646,2.55381707,554.6,553.02,1.66265057]
[1743974838846,3.89586368,554.59,553.02,1.66265057]
[1743974839046,2.55381707,554.58,553.02,1.66265057]
[1743974839251,2.33403248,554.57,553.02,1.66265057]
[1743974839446,1.89363851,554.56,553.02,1.66265057]
[1743974839645,0.99198587,554.55,553.02,1.66265057]
[1743974839848,1.67385392,554.54,553.02,1.66265057]
[1743974840047,0.33180731,554.53,553.02,1.66265057]
[1743974840443,1.88441913,554.53,553.02,1.66265057]
[1743974840648,2.2116579,554.53,553.02,1.66265057]
[1743974840848,0.6590548,554.52,553.02,1.66265057]
[1743974841049,1.34204661,554.54,553.02,1.66265057]
[1743974841050,1.5522904,554.53,553.02,1.66265057]
[1743974841344,0.6590548,554.53,553.02,1.66265057]
[1743974841650,1.34204661,554.54,553.02,1.66265057]
[1743974841955,1.34204661,554.52,553.02,1.66265057]
[1743974842250,1.34204661,554.51,553.02,1.66265057]
[1743974842945,1.34204661,554.5,553.02,1.66265057]
[1743974843144,1.65615722,554.5,553.02,1.66265057]
[1743974843546,0.31411061,554.5,553.02,1.66265057]
[1743974844752,0.31411061,554.5,553.02,3.37665057]
[1743974849260,1.401,554.49,553.02,3.37665057]
[1743974851361,1.099,554.48,553.02,3.37665057]
[1743974856863,1.533,554.47,553.02,3.37665057]
[1743974864568,1.533,554.47,553.09,1.31404325]
[1743974864863,1.533,554.47,553.11,0.36159172]
[1743974868068,1.533,554.47,553.12,1.402]
[1743974868271,1.533,554.47,553.14,0.36157211]
[1743974870263,1.427,554.46,553.14,0.36157211]
[1743974871665,1.427,554.46,553.15,1.489]
[1743974871867,1.427,554.46,553.17,0.3615525]
[1743974875570,1.427,554.46,553.23,1.31404325]
[1743974875971,1.427,554.46,553.25,0.36150022]
[1743974877981,1.427,554.46,553.42,1.31404325]
[1743974878176,1.427,554.46,553.44,0.36137612]
[1743974879080,2.77391771,554.46,553.44,0.36137612]
[1743974879280,0.31404683,554.45,553.44,0.36137612]
[1743974880980,0.97779228,554.45,553.44,0.36137612]
[1743974881581,2.32470999,554.45,553.44,0.36137612]
[1743974882383,1.56703493,554.44,553.44,0.36137612]
[1743974882586,3.57769809,554.44,553.44,0.36137612]
[1743974882785,2.23078038,554.43,553.44,0.36137612]
[1743974883179,1.34691771,554.42,553.44,0.36137612]
[1743974883480,3.57769809,554.42,553.44,0.36137612]
[1743974883780,3.57769809,554.41,553.44,0.36137612]
[1743974883986,2.23078038,554.4,553.44,0.36137612]
[1743974884186,1.56991549,554.39,553.44,0.36137612]
[1743974884483,1.34691771,554.39,553.44,0.36137612]
[1743974884680,3.58057865,554.39,553.44,0.36137612]
[1743974884883,2.23366094,554.38,553.44,0.36137612]
[1743974885083,1.34691771,554.37,553.44,0.36137612]
[1743974885284,3.58403573,554.37,553.44,0.36137612]
[1743974885484,2.23711802,554.36,553.44,0.36137612]
[1743974885686,3.58403573,554.36,553.44,0.36137612]
[1743974885882,2.23711802,554.35,553.44,0.36137612]
[1743974886082,1.34691771,554.34,553.44,0.36137612]
[1743974886387,5.01203573,554.34,553.44,0.36137612]
[1743974886588,3.58403573,554.33,553.44,0.36137612]
[1743974886782,2.23711802,554.32,553.44,0.36137612]
[1743974886986,2.23711802,554.32,553.45,1.125]
[1743974887184,1.34691771,554.31,553.46,0.36136306]
[1743974887388,3.58403573,554.31,553.46,0.36136306]
[1743974887589,1.428,554.34,553.46,0.36136306]
[1743974887590,3.58403573,554.3,553.46,0.36136306]
[1743974887789,2.23711802,554.29,553.46,0.36136306]
[1743974887992,1.34691771,554.28,553.46,0.36136306]
[1743974888190,3.58403573,554.28,553.46,0.36136306]
[1743974888390,2.23711802,554.27,553.46,0.36136306]
[1743974888584,1.34691771,554.26,553.46,0.36136306]
[1743974888790,3.58403573,554.26,553.46,0.36136306]
[1743974888989,4.69703573,554.25,553.46,0.36136306]
[1743974889188,2.23711802,554.24,553.46,0.36136306]
[1743974889986,1.34691771,554.23,553.46,0.36136306]
[1743974890191,3.58403573,554.23,553.46,0.36136306]
[1743974890387,2.23711802,554.22,553.46,0.36136306]
[1743974890892,2.91748702,554.21,553.46,0.36136306]
[1743974891094,0.66676059,554.2,553.46,0.36136306]
[1743974891294,2.2373299,554.2,553.46,0.36136306]
[1743974891486,3.58424761,554.2,553.46,0.36136306]
[1743974891690,2.2373299,554.19,553.46,0.36136306]
[1743974891889,3.58424761,554.19,553.46,0.36136306]
[1743974892095,2.23715325,554.18,553.46,0.36136306]
[1743974892395,1.34691771,554.17,553.46,0.36136306]
[1743974892595,3.58407096,554.17,553.46,0.36136306]
[1743974892791,3.58407096,554.16,553.46,0.36136306]
[1743974892996,2.23715325,554.15,553.46,0.36136306]
[1743974893192,2.23737423,554.15,553.46,0.36136306]
[1743974893593,1.34691771,554.14,553.46,0.36136306]
[1743974893894,3.58429194,554.14,553.46,0.36136306]
[1743974894096,3.58429194,554.13,553.46,0.36136306]
[1743974894296,2.23737423,554.12,553.46,0.36136306]
[1743974894795,1.34691771,554.11,553.46,0.36136306]
[1743974894995,3.58429194,554.11,553.46,0.36136306]
[1743974895191,2.23737423,554.1,553.47,0.12]
[1743974895898,1.34691771,554.09,553.47,0.12]
[1743974896199,3.58429194,554.09,553.47,0.12]
[1743974896496,2.23737423,554.08,553.47,0.12]
[1743974896695,2.23255764,554.07,553.47,0.12]
[1743974896892,3.57947535,554.06,553.47,0.12]
[1743974897093,2.23255764,554.05,553.47,0.12]
[1743974897594,1.34691771,554.04,553.47,0.12]
[1743974897793,3.57947535,554.04,553.47,0.12]
[1743974897994,2.23255928,554.03,553.47,0.12]
[1743974898193,0.66543031,554.03,553.47,0.12]
[1743974898694,0.992,554.02,553.47,0.12]
[1743974900197,0.31421271,554.01,553.47,0.12]
[1743974902795,0.992,554.02,553.47,0.12]
[1743974903093,0.31423541,554.0,553.47,0.12]
[1743974903999,2.32592878,554.0,553.47,0.12]
[1743974904199,1.56469741,553.99,553.47,0.12]
[1743974904395,3.57639078,553.99,553.47,0.12]
[1743974904600,0.66477566,553.98,553.47,0.12]
[1743974905198,1.87767504,554.0,553.47,0.12]
[1743974905396,0.66477566,553.99,553.47,0.12]
[1743974905600,1.8774849,554.0,553.47,0.12]
[1743974905797,0.66477566,553.99,553.47,0.12]
[1743974905995,2.01169337,554.01,553.47,0.12]
[1743974906200,0.31432623,553.99,553.47,0.12]
[1743974906597,2.5423395,553.99,553.47,0.12]
[1743974906904,3.34885452,553.98,553.47,0.12]
[1743974907205,0.66361691,553.97,553.47,0.12]
[1743974907401,2.01053462,553.97,553.47,0.12]
[1743974907804,2.01053462,553.97,553.48,1.436]
[1743974912202,2.01053462,553.97,553.49,1.658]
[1743974913010,2.22458919,553.96,553.49,1.658]
[1743974913308,1.34691771,553.95,553.49,1.658]
[1743974913510,3.5715069,553.95,553.49,1.658]
[1743974913710,2.22458919,553.94,553.49,1.658]
[1743974913908,2.00987126,553.93,553.49,1.658]
[1743974914109,1.56155242,553.92,553.49,1.658]
[1743974914310,3.20250597,553.92,553.49,1.658]
[1743974914511,2.00987126,553.91,553.5,0.12]
[1743974914708,1.56155242,553.9,553.5,0.12]
[1743974915009,1.34691771,553.89,553.5,0.12]
[1743974915209,3.88572436,553.89,553.5,0.12]
[1743974915403,2.22450597,553.88,553.5,0.12]
[1743974915604,1.34691771,553.87,553.5,0.12]
[1743974915804,3.57142368,553.87,553.5,0.12]
[1743974916015,3.57142368,553.86,553.5,0.12]
[1743974916211,2.22450597,553.85,553.5,0.12]
[1743974916511,0.99523107,553.84,553.5,0.12]
[1743974916706,2.55678349,553.83,553.5,0.12]
[1743974917010,3.9037012,553.82,553.5,0.12]
[1743974917211,2.55678349,553.81,553.5,0.12]
[1743974917411,3.9037012,553.8,553.5,0.12]
[1743974917610,2.22450597,553.79,553.5,0.12]
[1743974917805,2.22450597,553.78,553.5,0.12]
[1743974918005,3.57142368,553.77,553.5,0.12]
[1743974918306,2.22450597,553.76,553.5,0.12]
[1743974918510,2.22450597,553.75,553.5,0.12]
[1743974918709,2.22450597,553.74,553.5,0.12]
[1743974919006,2.22450597,553.73,553.5,0.12]
[1743974919311,1.34691771,553.72,553.5,0.12]
[1743974919514,3.57142368,553.72,553.5,0.12]
[1743974919810,2.22450597,553.71,553.5,0.12]
[1743974920007,1.34691771,553.7,553.5,0.12]
[1743974920211,3.57142368,553.7,553.5,0.12]
[1743974920506,3.57142368,553.69,553.5,0.12]
[1743974920712,2.22450597,553.68,553.5,0.12]
[1743974921110,1.34691771,553.67,553.5,0.12]
[1743974921412,3.57142368,553.67,553.5,0.12]
[1743974921706,2.22264114,553.66,553.5,0.12]
[1743974921911,3.56955885,553.66,553.5,0.12]
[1743974922112,2.22264114,553.65,553.5,0.12]
[1743974922310,1.34691771,553.64,553.5,0.12]
[1743974922714,1.34691771,553.77,553.5,0.12]
[1743974922907,0.31439012,553.78,553.5,0.12]
[1743974923912,1.34353438,553.83,553.5,0.12]
[1743974923913,1.34353438,553.82,553.5,0.12]
[1743974924109,0.33218172,553.81,553.5,0.12]
[1743974924414,0.31432197,553.77,553.5,0.12]
[1743974925718,2.53296812,553.77,553.5,0.12]
[1743974926018,0.66142649,553.76,553.5,0.12]
[1743974926315,1.34353438,553.75,553.5,0.12]
[1743974926714,3.56218053,553.75,553.5,0.12]
[1743974926918,1.55721966,553.74,553.5,0.12]
[1743974927124,3.56218053,553.74,553.5,0.12]
[1743974927316,2.21864615,553.73,553.5,0.12]
[1743974927719,1.34353438,553.72,553.5,0.12]
[1743974927920,3.56218053,553.72,553.5,0.12]
[1743974928116,3.56218053,553.71,553.5,0.12]
[1743974928320,2.21864615,553.7,553.5,0.12]
[1743974928823,2.00531025,553.69,553.5,0.12]
[1743974929022,1.55721966,553.68,553.5,0.12]
[1743974929223,1.34353438,553.67,553.5,0.12]
[1743974929419,3.56252991,553.67,553.5,0.12]
[1743974929719,3.56260563,553.66,553.5,0.12]
[1743974929923,2.21907125,553.65,553.5,0.12]
[1743974930122,1.34353438,553.64,553.5,0.12]
[1743974930326,3.56260563,553.64,553.5,0.12]
[1743974930520,2.21907125,553.63,553.5,0.12]
[1743974930821,1.34353438,553.62,553.5,0.12]
[1743974931118,2.00538597,553.62,553.5,0.12]
[1743974931322,1.34353438,553.76,553.5,0.12]
[1743974931923,1.34353438,553.75,553.5,0.12]
[1743974932725,1.34353438,553.74,553.5,0.12]
[1743974933225,1.34353438,553.73,553.5,0.12]
[1743974933930,3.56646004,553.76,553.5,0.12]
[1743974934130,3.56646004,553.75,553.5,0.12]
[1743974934330,1.34353438,553.75,553.5,0.12]
[1743974934530,0.31430778,553.86,553.5,0.12]
[1743974934728,2.53994188,553.86,553.5,0.12]
[1743974934932,2.00691507,553.85,553.5,0.12]
[1743974935126,1.56225341,553.84,553.5,0.12]
[1743974935331,2.22664424,553.84,553.5,0.12]
[1743974935528,0.66338069,553.84,553.5,0.12]
[1743974935725,1.34353438,553.83,553.5,0.12]
[1743974936026,2.00691507,553.83,553.5,0.12]
[1743974936332,1.34353438,553.83,553.5,0.12]
[1743974936526,0.66424404,553.87,553.5,0.12]
[1743974936729,2.00777842,553.87,553.5,0.12]
[1743974937633,2.00777842,553.87,552.65,0.31442989]
[1743974938028,2.00777842,553.87,552.67,0.3618796]
[1743974938229,1.34353438,553.87,552.67,0.3618796]
[1743974938635,2.55853438,553.88,552.67,0.3618796]
[1743974938833,2.55853438,553.88,552.67,1.4958796]
[1743974940232,2.55853438,553.88,552.67,2.7858796]
[1743974940637,2.55853438,553.88,552.67,2.9058796]
[1743974941439,1.215,553.88,552.67,2.9058796]
[1743974943039,1.215,553.88,552.68,1.31404325]
[1743974943534,1.215,553.88,552.7,0.36185996]
[1743974953850,1.118,553.89,552.7,0.36185996]
[1743974954546,1.039,553.88,552.7,0.36185996]
[1743974956150,1.012,553.87,552.7,0.36185996]
[1743974959156,1.586,553.86,552.71,1.356]
[1743974959458,1.586,553.86,552.73,0.36184031]
[1743974959652,1.373,553.85,552.73,0.36184031]
[1743974961754,1.373,553.85,552.74,0.12]
[1743974962058,1.373,553.85,552.76,0.36182068]
[1743974969060,1.202,553.84,552.76,0.36182068]
[1743974970762,1.202,553.84,552.86,1.31404325]
[1743974972265,1.202,553.84,552.88,0.36174215]
[1743974973568,1.202,553.84,552.89,1.829]
[1743974974566,1.202,553.84,552.91,0.36172252]
[1743974978972,1.202,553.84,552.99,1.31404325]
[1743974979165,1.202,553.84,553.01,0.36165711]
[1743974982175,1.202,553.84,553.02,0.12]
[1743974982373,1.45,553.83,553.02,0.12]
[1743974982571,1.45,553.83,553.04,0.36163749]
[1743974983177,2.764,553.83,553.04,0.36163749]
[1743974984473,2.764,553.83,553.04,1.67568074]
[1743974986379,2.764,553.83,553.04,0.36163749]
[1743974988474,2.764,553.83,553.05,1.31404325]
[1743974988677,2.764,553.83,553.06,0.36162441]
[1743974990983,4.244,553.83,553.06,0.36162441]
[1743974991484,4.244,553.83,553.06,1.84462441]
[1743974996581,4.244,553.83,553.2,1.31404325]
[1743974996785,4.244,553.83,553.21,0.36152636]
[1743974998483,4.244,553.83,553.25,1.31404325]
[1743974998687,4.244,553.83,553.26,0.36149369]
[1743975000989,4.244,553.83,553.49,1.31404325]
[1743975001186,4.244,553.83,553.5,0.36133694]
[1743975001382,2.93,553.83,553.5,0.36133694]
[1743975003589,0.85801278,553.84,553.5,0.36133694]
[1743975003890,4.36526248,555.89,553.5,0.36133694]
[1743975004089,0.35985461,555.78,553.5,0.36133694]
[1743975004285,2.58450294,555.77,553.5,0.36133694]
[1743975004490,0.35987404,555.75,553.5,0.36133694]
[1743975004691,2.58450294,555.74,553.6,1.31404325]
[1743975004990,0.35989347,555.72,553.7,0.36120642]
[1743975005187,2.58450294,555.71,553.7,0.36120642]
[1743975005388,0.3599129,555.69,553.7,0.36120642]
[1743975005586,2.58450294,555.68,553.7,0.36120642]
[1743975005786,0.35993233,555.66,553.7,0.36120642]
[1743975005991,2.58450294,555.65,553.7,0.36120642]
[1743975006291,2.58450294,555.64,553.7,0.36120642]
[1743975006486,3.94880082,555.63,553.7,0.36120642]
[1743975006685,2.58450294,555.62,553.7,0.36120642]
[1743975006887,2.58450294,555.61,553.7,0.36120642]
[1743975007194,0.35997768,555.59,553.7,0.36120642]
[1743975007389,2.61327774,555.58,553.7,0.36120642]
[1743975007586,2.61327774,555.57,553.7,0.36120642]
[1743975007791,0.3600036,555.55,553.7,0.36120642]
[1743975008091,2.61327774,555.54,553.7,0.36120642]
[1743975008293,2.9732943,555.53,553.7,0.36120642]
[1743975008591,2.97330078,555.52,553.7,0.36120642]
[1743975008792,2.97330726,555.51,553.7,0.36120642]
[1743975008991,2.97331374,555.5,553.7,0.36120642]
[1743975009184,4.3376181,555.49,553.7,0.36120642]
[1743975009490,4.33762458,555.48,553.7,0.36120642]
[1743975009691,2.61327774,555.47,553.7,0.36120642]
[1743975009889,4.33763755,555.46,553.7,0.36120642]
[1743975010087,2.97334615,555.45,553.7,0.36120642]
[1743975010290,2.97335263,555.44,553.7,0.36120642]
[1743975010493,2.97335911,555.43,553.7,0.36120642]
[1743975010693,2.9733656,555.42,553.7,0.36120642]
[1743975010895,2.97337208,555.41,553.7,0.36120642]
[1743975011195,2.61327774,555.4,553.7,0.36120642]
[1743975011389,3.97757562,555.39,553.7,0.36120642]
[1743975011587,2.61327774,555.38,553.7,0.36120642]
[1743975011786,2.61327774,555.37,553.7,0.36120642]
[1743975011990,2.61327774,555.36,553.7,0.36120642]
[1743975012188,3.97757562,555.35,553.7,0.36120642]
[1743975012394,2.61327774,555.34,553.7,0.36120642]
[1743975012590,2.61327774,555.33,553.7,0.36120642]
[1743975012794,2.61327774,555.32,553.7,0.36120642]
[1743975012995,2.61327774,555.31,553.7,0.36120642]
[1743975013195,2.61327774,555.3,553.7,0.36120642]
[1743975013395,2.61327774,555.29,553.7,0.36120642]
[1743975013595,2.61327774,555.28,553.7,0.36120642]
[1743975013797,2.28175655,555.27,553.7,0.36120642]
[1743975013997,2.6131864,555.26,553.7,0.36120642]
[1743975014302,3.97748428,555.25,553.7,0.36120642]
[1743975014496,2.28175655,555.24,553.7,0.36120642]
[1743975014696,3.97747825,555.23,553.7,0.36120642]
[1743975014892,2.61318037,555.22,553.7,0.36120642]
[1743975015092,3.97747825,555.21,553.7,0.36120642]
[1743975015292,2.61318037,555.2,553.7,0.36120642]
[1743975015496,3.97747825,555.19,553.7,0.36120642]
[1743975015797,2.61314507,555.18,553.7,0.36120642]
[1743975015992,2.28175655,555.17,553.7,0.36120642]
[1743975016202,1.36429788,555.16,553.7,0.36120642]
[1743975016501,3.64605443,555.16,553.7,0.36120642]
[1743975016702,2.28175655,555.15,553.7,0.36120642]
[1743975016901,3.64605443,555.15,553.7,0.36120642]
[1743975017101,2.28175655,555.14,553.7,0.36120642]
[1743975017499,1.6030024,555.13,553.7,0.36120642]
[1743975017703,1.36429788,555.13,553.7,0.36120642]
[1743975017905,3.63872975,555.13,553.7,0.36120642]
[1743975018102,3.63872975,555.12,553.7,0.36120642]
[1743975018304,2.27443187,555.11,553.7,0.36120642]
[1743975018605,1.36429788,555.1,553.7,0.36120642]
[1743975018805,3.63872975,555.1,553.7,0.36120642]
[1743975019105,3.63872975,555.09,553.7,0.36120642]
[1743975019405,2.27443187,555.08,553.7,0.36120642]
[1743975019804,1.36429788,555.07,553.7,0.36120642]
[1743975020008,3.64718477,555.07,553.7,0.36120642]
[1743975020201,2.28288689,555.06,553.7,0.36120642]
[1743975020506,1.36429788,555.05,553.7,0.36120642]
[1743975020708,4.65318477,555.05,553.7,0.36120642]
[1743975020900,2.28288689,555.04,553.7,0.36120642]
[1743975021100,1.59923733,555.03,553.7,0.36120642]
[1743975021307,2.27912182,555.03,553.7,0.36120642]
[1743975021507,1.36429788,555.02,553.7,0.36120642]
[1743975021708,3.6434197,555.02,553.7,0.36120642]
[1743975022007,2.27912182,555.01,553.7,0.36120642]
[1743975022307,1.36429788,555.0,553.7,0.36120642]
[1743975022507,3.64315122,555.0,553.7,0.36120642]
[1743975022708,2.27885334,554.99,553.71,1.392]
[1743975023006,2.27885334,554.99,553.73,0.36118686]
[1743975023209,1.69576855,554.98,553.73,0.36118686]
[1743975023408,1.59923733,554.97,553.73,0.36118686]
[1743975023707,3.97464024,554.96,553.73,0.36118686]
[1743975023905,2.61034236,554.95,553.73,0.36118686]
[1743975024105,3.64315122,554.94,553.73,0.36118686]
[1743975024308,2.61036484,554.93,553.73,0.36118686]
[1743975024507,2.61036484,554.92,553.73,0.36118686]
[1743975024809,3.64315122,554.91,553.73,0.36118686]
[1743975025109,3.97467834,554.9,553.73,0.36118686]
[1743975025309,2.61038046,554.89,553.74,0.119]
[1743975025608,1.01114313,554.88,553.76,0.36116729]
[1743975025807,0.33152712,554.87,553.76,0.36116729]
[1743975026005,1.36429788,554.86,553.76,0.36116729]
[1743975026209,0.33152712,554.85,553.76,0.36116729]
[1743975026409,3.64315122,554.86,553.76,0.36116729]
[1743975026710,2.61038154,554.85,553.76,0.36116729]
[1743975027012,2.04391389,554.84,553.76,0.36116729]
[1743975027312,3.29511892,554.83,553.76,0.36116729]
[1743975027506,0.67961601,554.82,553.76,0.36116729]
[1743975027811,0.3315921,554.81,553.76,0.36116729]
[1743975028012,2.61044544,554.81,553.76,0.36116729]
[1743975028211,0.67961601,554.8,553.76,0.36116729]
[1743975028405,0.3315921,554.79,553.76,0.36116729]
[1743975028806,5.25474332,554.79,553.76,0.36116729]
[1743975029006,2.61044544,554.78,553.76,0.36116729]
[1743975029313,1.01079543,554.77,553.76,0.36116729]
[1743975029513,0.33159154,554.76,553.76,0.36116729]
[1743975029908,2.27844122,554.76,553.76,0.36116729]
[1743975030208,1.4568882,554.75,553.76,0.36116729]
[1743975030411,5.09963012,554.75,553.76,0.36116729]
[1743975030612,2.27844404,554.74,553.76,0.36116729]
[1743975031210,1.36429788,554.73,553.76,0.36116729]
[1743975031408,3.64274192,554.73,553.76,0.36116729]
[1743975031607,2.27844404,554.72,553.76,0.36116729]
[1743975032109,1.36429788,554.71,553.77,1.229]
[1743975032308,3.64274192,554.71,553.79,0.36114772]
[1743975032507,2.27844404,554.7,553.79,0.36114772]
[1743975033113,2.04305813,554.69,553.79,0.36114772]
[1743975033314,1.59924015,554.68,553.79,0.36114772]
[1743975033519,3.64229828,554.68,553.79,0.36114772]
[1743975033715,2.2780004,554.67,553.79,0.36114772]
[1743975033914,1.36429788,554.66,553.79,0.36114772]
[1743975034115,3.64229828,554.66,553.79,0.36114772]
[1743975034313,3.64229828,554.65,553.79,0.36114772]
[1743975034517,2.27879815,554.64,553.79,0.36114772]
[1743975035216,1.36429788,554.63,553.79,0.36114772]
[1743975035416,3.64309603,554.63,553.79,0.36114772]
[1743975035614,3.64309603,554.62,553.79,0.36114772]
[1743975035814,2.27879815,554.61,553.79,0.36114772]
[1743975036114,1.59924015,554.61,553.79,0.36114772]
[1743975036319,1.36429788,554.63,553.79,0.36114772]
[1743975037220,0.31389811,554.64,553.79,0.36114772]
[1743975037922,2.04423264,554.69,553.79,0.36114772]
[1743975038216,0.3138882,554.65,553.79,0.36114772]
[1743975039016,1.67818608,554.65,553.79,0.36114772]
[1743975039318,3.95736099,554.65,553.79,0.36114772]
[1743975039516,4.32553803,554.64,553.79,0.36114772]
[1743975039714,2.72629788,554.64,553.79,0.36114772]
[1743975040122,1.362,554.64,553.79,0.48014772]
[1743975041023,3.64367943,554.64,553.79,0.48014772]
[1743975041216,2.96561645,554.63,553.79,0.48014772]
[1743975042119,1.36429788,554.63,553.79,0.48014772]
[1743975042723,1.362,554.64,553.79,0.48014772]
[1743975046131,1.362,554.64,553.79,1.53214772]
[1743975048431,1.362,554.64,553.88,1.31404325]
[1743975048730,1.362,554.64,553.89,0.36108252]